fUSD/lending_fUSD_20241106
["ID","MTS","AMOUNT","RATE_DAILY","PERIOD"]
[341425495,1730874665472,-151.0,0.00037999,7]
[341425496,1730874665482,-191.021053,0.00037999,7]
[341425497,1730874665491,-151.0,0.00037999,7]
[341425498,1730874665500,-151.0,0.00037999,7]
[341425499,1730874665510,-151.0,0.00037999,7]
[341425500,1730874665519,-151.0,0.00037999,7]
[341425501,1730874665529,-151.0,0.00037999,7]
[341425502,1730874665538,-151.0,0.00037999,7]
[341425503,1730874665547,-151.0,0.00037999,7]
[341425504,1730874665557,-151.0,0.00037999,7]
[341425505,1730874665567,-151.0,0.00037999,7]
[341425506,1730874665576,-222.469399,0.00037999,7]
[341425507,1730874665587,-151.0,0.00037999,7]
[341425508,1730874665599,-151.0,0.00037999,7]
[341425509,1730874665608,-151.0,0.00037999,7]
[341425510,1730874665617,-151.0,0.00037999,7]
[341425511,1730874665626,-156.337878,0.00037999,7]
[341425512,1730874665635,-151.0,0.00037999,7]
[341425513,1730874665645,-151.0,0.00037999,7]
[341425514,1730874665655,-151.0,0.00037999,7]
[341425515,1730874665664,-151.0,0.00037999,7]
[341425516,1730874665673,-151.0,0.00037999,7]
[341425517,1730874665683,-151.0,0.00037999,7]
[341425518,1730874665692,-151.0,0.00037999,7]
[341425519,1730874665702,-151.0,0.00037999,7]
[341425520,1730874665711,-151.0,0.00037999,7]
[341425521,1730874665720,-151.0,0.00037999,7]
[341425522,1730874665729,-160.087023,0.00037999,7]
[341425523,1730874665739,-151.0,0.00037999,7]
[341425524,1730874665748,-151.0,0.00037999,7]
[341425525,1730874665758,-155.928053,0.00037999,7]
[341425526,1730874665767,-736.562045,0.00037999,7]
[341425527,1730874665777,-736.562045,0.00037999,7]
[341425528,1730874665787,-736.562045,0.00037999,7]
[341425529,1730874665796,-736.562045,0.00037999,7]
[341425530,1730874665805,-736.562045,0.00037999,7]
[341425531,1730874665815,-736.562045,0.00037999,7]
[341425532,1730874665824,-736.562045,0.00037999,7]
[341425533,1730874665834,-151.0,0.00037999,7]
[341425534,1730874665844,-151.0,0.00037999,7]
[341425535,1730874665859,-736.562045,0.00037999,7]
[341425536,1730874665871,-151.0,0.00037999,7]
[341425537,1730874665881,-736.562045,0.00037999,7]
[341425538,1730874665891,-151.0,0.00037999,7]
[341425539,1730874665902,-736.562045,0.00037999,7]
[341425540,1730874665911,-151.0,0.00037999,7]
[341425541,1730874665920,-736.562045,0.00037999,7]
[341425542,1730874665930,-151.0,0.00037999,7]
[341425543,1730874665940,-736.562045,0.00037999,7]
[341425544,1730874665949,-736.562045,0.00037999,7]
[341425545,1730874665960,-151.0,0.00037999,7]
[341425546,1730874665969,-736.562045,0.00037999,7]
[341425547,1730874665979,-151.0,0.00037999,7]
[341425548,1730874665989,-226.281947,0.00037999,7]
[341425549,1730874665999,-226.281947,0.00037999,7]
[341425550,1730874666008,-226.281947,0.00037999,7]
[341425551,1730874666283,-736.562045,0.00037999,7]
[341425552,1730874666295,-226.281947,0.00037999,7]
[341425553,1730874666305,-736.562045,0.00037999,7]
[341425554,1730874666316,-226.281947,0.00037999,7]
[341425555,1730874666325,-736.562045,0.00037999,7]
[341425556,1730874666335,-226.281947,0.00037999,7]
[341425557,1730874666344,-736.562045,0.00037999,7]
[341425558,1730874666358,-226.281947,0.00037999,7]
[341425559,1730874666367,-736.562045,0.00037999,7]
[341425560,1730874666584,-226.281947,0.00037999,7]
[341425561,1730874666593,-736.562054,0.00037999,7]
[341425562,1730874666607,-226.281947,0.00037999,7]
[341425563,1730874666617,-226.281947,0.00037999,7]
[341425564,1730874666626,-226.281947,0.00037999,7]
[341425565,1730874666635,-226.281947,0.00037999,7]
[341425566,1730874666644,-226.281947,0.00037999,7]
[341425567,1730874666653,-226.281947,0.00037999,7]
[341425568,1730874666662,-226.281947,0.00037999,7]
[341425569,1730874666671,-226.281947,0.00037999,7]
[341425570,1730874666680,-226.281947,0.00037999,7]
[341425571,1730874666689,-226.281947,0.00037999,7]
[341425572,1730874666698,-226.281947,0.00037999,7]
[341425573,1730874666707,-226.281943,0.00037999,7]
[341425574,1730874666716,-202.531649,0.00037999,7]
[341425575,1730874666725,-202.531649,0.00037999,7]
[341425576,1730874666735,-202.531649,0.00037999,7]
[341425577,1730874666744,-202.531649,0.00037999,7]
[341425578,1730874666753,-151.0,0.00037999,7]
[341425579,1730874666762,-202.531649,0.00037999,7]
[341425580,1730874666772,-166.108532,0.00037999,7]
[341425581,1730874666781,-202.531649,0.00037999,7]
[341425582,1730874666790,-202.531649,0.00037999,7]
[341425583,1730874666799,-202.531649,0.00037999,7]
[341425584,1730874666808,-202.531649,0.00037999,7]
[341425585,1730874666818,-202.531649,0.00037999,7]
[341425586,1730874666827,-202.531649,0.00037999,7]
[341425587,1730874666836,-202.531649,0.00037999,7]
[341425588,1730874666845,-202.531649,0.00037999,7]
[341425589,1730874666858,-202.531649,0.00037999,7]
[341425590,1730874666867,-202.531649,0.00037999,7]
[341425591,1730874666876,-202.531649,0.00037999,7]
[341425592,1730874666885,-202.531649,0.00037999,7]
[341425593,1730874666894,-202.531649,0.00037999,7]
[341425594,1730874666904,-202.531649,0.00037999,7]
[341425595,1730874666913,-202.531652,0.00037999,7]
[341425596,1730874666923,-151.0,0.00037999,7]
[341425597,1730874666932,-151.0,0.00037999,7]
[341425598,1730874666942,-151.0,0.00037999,7]
[341425599,1730874666951,-151.0,0.00037999,7]
[341425600,1730874666961,-151.0,0.00037999,7]
[341425601,1730874666971,-151.0,0.00037999,7]
[341425602,1730874666980,-151.0,0.00037999,7]
[341425603,1730874666990,-151.0,0.00037999,7]
[341425604,1730874666999,-151.0,0.00037999,7]
[341425605,1730874667009,-151.0,0.00037999,7]
[341425606,1730874667019,-151.0,0.00037999,7]
[341425607,1730874667028,-151.0,0.00037999,7]
[341425608,1730874667037,-151.0,0.00037999,7]
[341425609,1730874667047,-151.0,0.00037999,7]
[341425610,1730874667057,-151.0,0.00037999,7]
[341425611,1730874667067,-151.0,0.00037999,7]
[341425612,1730874667077,-288.725652,0.00037999,7]
[341425613,1730874667087,-4341.709804,0.00037999,7]
[341425614,1730874667097,-151.0,0.00037999,7]
[341425615,1730874667109,-4341.709804,0.00037999,7]
[341425616,1730874667119,-158.158502,0.00037999,7]
[341425617,1730874667128,-4341.709804,0.00037999,7]
[341425618,1730874667137,-4341.709804,0.00037999,7]
[341425619,1730874667147,-4341.709804,0.00037999,7]
[341425620,1730874667156,-4341.709804,0.00037999,7]
[341425621,1730874667165,-4341.709804,0.00037999,7]
[341425622,1730874667175,-4341.709804,0.00037999,7]
[341425623,1730874667184,-4341.709804,0.00037999,7]
[341425624,1730874667194,-4341.709804,0.00037999,7]
[341425625,1730874667203,-4341.709804,0.00037999,7]
[341425626,1730874667212,-4341.709804,0.00037999,7]
[341425627,1730874667222,-4341.709804,0.00037999,7]
[341425628,1730874667231,-4341.709804,0.00037999,7]
[341425629,1730874667240,-151.0,0.00037999,7]
[341425630,1730874667249,-4341.709804,0.00037999,7]
[341425631,1730874667259,-161.702729,0.00037999,7]
[341425632,1730874667268,-4341.709804,0.00037999,7]
[341425633,1730874667277,-4341.709804,0.00037999,7]
[341425634,1730874667288,-4341.709804,0.00037999,7]
[341425635,1730874667301,-4341.709804,0.00037999,7]
[341425636,1730874667311,-4341.709808,0.00037999,7]
[341425637,1730874667320,-151.0,0.00037999,7]
[341425638,1730874667330,-151.0,0.00037999,7]
[341425639,1730874667339,-228.867661,0.00037999,7]
[341425640,1730874667352,-151.0,0.00037999,7]
[341425641,1730874667361,-151.0,0.00037999,7]
[341425642,1730874667372,-151.0,0.00037999,7]
[341425643,1730874667382,-151.0,0.00037999,7]
[341425644,1730874667391,-151.0,0.00037999,7]
[341425645,1730874667400,-151.0,0.00037999,7]
[341425646,1730874667409,-151.0,0.00037999,7]
[341425647,1730874667419,-151.0,0.00037999,7]
[341425648,1730874667427,-151.0,0.00037999,7]
[341425649,1730874667436,-151.0,0.00037999,7]
[341425650,1730874667446,-151.0,0.00037999,7]
[341425651,1730874667455,-151.0,0.00037999,7]
[341425652,1730874667464,-151.0,0.00037999,7]
[341425653,1730874667474,-151.0,0.00037999,7]
[341425654,1730874667483,-151.0,0.00037999,7]
[341425655,1730874667493,-151.0,0.00037999,7]
[341425656,1730874667503,-151.0,0.00037999,7]
[341425657,1730874667512,-151.0,0.00037999,7]
[341425658,1730874667522,-151.0,0.00037999,7]
[341425659,1730874667531,-218.952298,0.00037999,7]
[341425660,1730874667541,-151.0,0.00037999,7]
[341425661,1730874667550,-151.0,0.00037999,7]
[341425662,1730874667560,-151.0,0.00037999,7]
[341425663,1730874667569,-151.0,0.00037999,7]
[341425664,1730874667578,-151.0,0.00037999,7]
[341425665,1730874667588,-176.924534,0.00037999,7]
[341425666,1730874667603,-151.0,0.00037999,7]
[341425667,1730874667612,-151.0,0.00037999,7]
[341425668,1730874667622,-151.0,0.00037999,7]
[341425669,1730874667631,-151.0,0.00037999,7]
[341425670,1730874667641,-151.0,0.00037999,7]
[341425671,1730874667651,-151.0,0.00037999,7]
[341425672,1730874667661,-151.0,0.00037999,7]
[341425673,1730874667671,-220.161466,0.00037999,7]
[341425674,1730874667680,-151.0,0.00037999,7]
[341425675,1730874667689,-151.0,0.00037999,7]
[341425676,1730874667699,-151.0,0.00037999,7]
[341425677,1730874667708,-151.0,0.00037999,7]
[341425678,1730874667717,-151.0,0.00037999,7]
[341425679,1730874667727,-151.0,0.00037999,7]
[341425680,1730874667736,-151.0,0.00037999,7]
[341425681,1730874667745,-151.0,0.00037999,7]
[341425682,1730874667755,-151.0,0.00037999,7]
[341425683,1730874667765,-151.0,0.00037999,7]
[341425684,1730874667775,-175.488353,0.00037999,7]
[341425685,1730874667784,-151.0,0.00037999,7]
[341425686,1730874667793,-151.0,0.00037999,7]
[341425687,1730874667803,-151.0,0.00037999,7]
[341425688,1730874667812,-151.0,0.00037999,7]
[341425689,1730874667822,-151.0,0.00037999,7]
[341425690,1730874667831,-151.0,0.00037999,7]
[341425691,1730874667842,-151.0,0.00037999,7]
[341425692,1730874667854,-151.0,0.00037999,7]
[341425693,1730874667864,-151.0,0.00037999,7]
[341425694,1730874667874,-151.0,0.00037999,7]
[341425695,1730874667883,-161.591692,0.00037999,7]
[341425696,1730874667893,-151.0,0.00037999,7]
[341425697,1730874667902,-222.734236,0.00037999,7]
[341425698,1730874667911,-268.633322,0.00037999,7]
[341425699,1730874667921,-268.633322,0.00037999,7]
[341425700,1730874667930,-268.633322,0.00037999,7]
[341425701,1730874667939,-268.633322,0.00037999,7]
[341425702,1730874667948,-268.633322,0.00037999,7]
[341425703,1730874667957,-268.633322,0.00037999,7]
[341425704,1730874667967,-268.633322,0.00037999,7]
[341425705,1730874667977,-268.633322,0.00037999,7]
[341425706,1730874667987,-268.633322,0.00037999,7]
[341425707,1730874667996,-268.633322,0.00037999,7]
[341425708,1730874668005,-500.0,0.00037999,15]
[341425709,1730874668015,-268.633322,0.00037999,7]
[341425710,1730874668024,-500.0,0.00037999,15]
[341425711,1730874668034,-500.0,0.00037999,15]
[341425712,1730874668043,-500.0,0.00037999,15]
[341425713,1730874668052,-500.0,0.00037999,15]
[341425714,1730874668062,-500.0,0.00037999,15]
[341425715,1730874668071,-500.0,0.00037999,15]
[341425716,1730874668080,-500.0,0.00037999,15]
[341425717,1730874668089,-500.0,0.00037999,15]
[341425718,1730874668101,-547.37224161,0.00037999,15]
[341425719,1730874668110,-500.0,0.00037999,15]
[341425720,1730874668120,-500.0,0.00037999,15]
[341425721,1730874668133,-500.0,0.00037999,15]
[341425722,1730874668143,-268.633322,0.00037999,7]
[341425723,1730874668153,-268.633322,0.00037999,7]
[341425724,1730874668163,-268.633322,0.00037999,7]
[341425725,1730874668172,-268.633322,0.00037999,7]
[341425726,1730874668182,-268.633319,0.00037999,7]
[341425727,1730874668191,-58311.95330196,0.00038,7]
[341425728,1730874668200,-899.9999991,0.00038,39]
[341425729,1730874668209,-1853173.21061158,0.00038,15]
[341425730,1730874668637,-13572.73895737,0.00038,15]
[341425731,1730874668648,-4379.60048095,0.00038,15]
[341425732,1730874668659,-59709.9776,0.00038,15]
[341425733,1730874668669,-4888.66482953,0.00038,15]
[341425734,1730874668681,-484.56846424,0.00038,15]
[341425735,1730874668693,-3319.5905066,0.00038,15]
[341425736,1730874668708,-293.13610406,0.00038,15]
[341425737,1730874668719,-1649.6993887,0.00038,15]
[341425738,1730874668730,-8831.03326097,0.00038,15]
[341425739,1730874668796,-75358.25195575,0.00038,15]
[341425740,1730874668807,-1875.5,0.00038,15]
[341425741,1730874668817,-87051.63902717,0.00038,15]
[341425742,1730874668827,-12876.88035159,0.00038,15]
[341425743,1730874668838,-260.75007781,0.00038,15]
[341425744,1730874668851,-1921.13522467,0.00038,15]
[341425745,1730874668863,-8277.08111999,0.00038,15]
[341425746,1730874668874,-1039.54416119,0.00038,15]
[341425747,1730874668889,-1668.02297108,0.00038,15]
[341425748,1730874668900,-993.12736041,0.00038,15]
[341425749,1730874668911,-52394.5057874,0.00038,15]
[341425750,1730874668961,-328.01,0.00037808,14]
[341425751,1730874668970,-500.0,0.00037928,14]
[341425752,1730874668979,-500.0,0.00037997,14]
[341425753,1730874668988,-70.57433945,0.00038,15]
[341425754,1730874668998,-494.64767879,0.00038,15]
[341425755,1730874669009,-3990.89070214,0.00038,15]
[341425756,1730874669020,-15006.17254618,0.00038,15]
[341425757,1730874669031,-1580.2058401,0.00038,15]
[341425758,1730874669043,-718.50407743,0.00038,15]
[341425759,1730874669054,-405555.45810503,0.00038,15]
[341425760,1730874669064,-373.5,0.00038,15]
[341425761,1730874669082,-500.0,0.00037998,14]
[341425762,1730874669091,-260652.54399998,0.00038,15]
[341425763,1730874669106,-734.57437517,0.00038,15]
[341425764,1730874669135,168.56,0.00034,120]
[341425765,1730874669148,-18718.75,0.00038,15]
[341425766,1730874669880,26550.0,0.00034,60]
[341425768,1730874854431,159.93,0.00015342,2]
[341425770,1730874948228,929.0,0.00016,10]
[341425771,1730875324941,150.0,0.00017161,15]
[341425772,1730875329952,150.0,0.00017161,15]
[341425773,1730875330774,150.0,0.00017161,15]
[341425774,1730875331623,150.0,0.00017161,15]
[341425775,1730875332510,150.0,0.00017161,15]
[341425776,1730875366081,175.03974238,0.00035,120]
[341425778,1730875540186,-150.0,0.00018123,2]
[341425779,1730875540206,-300.0,0.00019725,2]
[341425780,1730875540226,-420.0,0.00021484,2]
[341425781,1730875540245,-1070.0,0.000235,2]
[341425782,1730875540265,-166.81,0.0002707,15]
[341425783,1730875540285,-159.93,0.00027507,2]
[341425784,1730875540312,-166.996,0.0002802,39]
[341425785,1730875540332,-133.45939802,0.0003351,2]
[341425787,1730875632083,-154.9,0.00016712,2]
[341425788,1730875632104,-229.2365074,0.00021,2]
[341425789,1730875634097,-20.7634926,0.00021,2]
[341425790,1730875634120,-212.89208129,0.00023,2]
[341425791,1730875642096,-87.10791871,0.00023,2]
[341425792,1730875642117,-350.0,0.00025,2]
[341425793,1730875642139,-400.0,0.00027,2]
[341425794,1730875642159,-450.0,0.00029,2]
[341425795,1730875642179,-500.0,0.00031,2]
[341425796,1730875642200,-33.35660198,0.0003351,2]
[341425797,1730875642221,-619.37,0.00034296,2]
[341425798,1730875642242,-92.54715424,0.00035604,2]
[341425799,1730875651138,-465.46686305,0.00035604,2]
[341425800,1730875654105,-37.99598271,0.00035604,2]
[341425801,1730875654125,-219.7,0.00036085,2]
[341425802,1730875654147,-596.01,0.00036176,2]
[341425803,1730875654168,-200.0,0.00036228,7]
[341425804,1730875654189,-640.0,0.00036268,2]
[341425805,1730875654211,-355.67,0.00036388,120]
[341425806,1730875654232,-250.0,0.0003639,120]
[341425807,1730875654252,-344.09,0.00036494,2]
[341425808,1730875654272,-195.87,0.00036515,2]
[341425809,1730875654293,-619.37,0.0003656,2]
[341425810,1730875654314,-181.23,0.00036588,2]
[341425811,1730875654335,-360.0,0.00036692,2]
[341425812,1730875654355,-596.01,0.00036748,2]
[341425813,1730875654379,-181.23,0.00036771,2]
[341425814,1730875654399,-84.54608908,0.000368,2]
[341425825,1730875748449,-550.0,0.00033,2]
[341425826,1730875813838,150.0,0.00018123,2]
[341425827,1730875816407,273.6165,0.0003,2]
[341425834,1730875831779,-150.0,0.00034999,2]
[341425835,1730875831788,-597.3417,0.000362,30]
[341425836,1730875832395,-4013.6583,0.000362,30]
[341425837,1730875832405,-433.53391092,0.000368,2]
[341425838,1730875832415,-172.04,0.00036813,2]
[341425839,1730875832424,-2035.515,0.000369,2]
[341425840,1730875832434,-427.45,0.000369,2]
[341425841,1730875832444,-427.45,0.00036941,2]
[341425842,1730875832453,-181.23,0.00036954,2]
[341425843,1730875832463,-166.2,0.00036967,120]
[341425844,1730875832472,-2000.0,0.00037,2]
[341425845,1730875832482,-159.530207,0.00037214,2]
[341425846,1730875832492,-273.6165,0.00037261,2]
[341425847,1730875832501,-101.6190821,0.0003732,2]
[341425848,1730875832520,-494.3909179,0.0003732,2]
[341425849,1730875832535,-500.0,0.000376,2]
[341425850,1730875832544,-931.81451,0.0003762,2]
[341425852,1730875832553,-984.423,0.00037798,49]
[341425854,1730875832562,-265.65,0.00037798,10]
[341425856,1730875832572,-180.1375721,0.00037808,14]
[341425875,1730875837938,-1799.4581,0.000368,2]
[341425876,1730875837948,-414.77,0.00037798,10]
[341425877,1730875837959,-319.62458228,0.00037808,14]
[341425878,1730875837968,-500.0,0.00037808,14]
[341425879,1730875837978,-387.83455723,0.00037808,14]
[341425880,1730875837988,-500.0,0.00037808,14]
[341425881,1730875837998,-500.0,0.00037808,14]
[341425882,1730875838007,-500.0,0.00037808,14]
[341425883,1730875838016,-500.0,0.00037808,14]
[341425884,1730875838027,-476.20161545,0.00037808,14]
[341425885,1730875838036,-339.02441046,0.00037808,14]
[341425886,1730875838046,-471.07626994,0.00037808,14]
[341425887,1730875838055,-500.0,0.00037808,14]
[341425888,1730875838065,-500.0,0.00037808,14]
[341425889,1730875838074,-500.0,0.00037808,14]
[341425890,1730875838083,-500.0,0.00037808,14]
[341425891,1730875838092,-500.0,0.00037808,14]
[341425892,1730875838101,-500.0,0.00037808,14]
[341425893,1730875838111,-500.0,0.00037808,14]
[341425894,1730875838120,-500.0,0.00037808,14]
[341425895,1730875838129,-500.0,0.00037808,14]
[341425896,1730875838139,-500.0,0.00037808,14]
[341425897,1730875838148,-500.0,0.00037808,14]
[341425898,1730875838157,-500.0,0.00037808,14]
[341425899,1730875838167,-500.0,0.00037808,14]
[341425900,1730875838177,-500.0,0.00037808,14]
[341425901,1730875838186,-500.0,0.00037808,14]
[341425902,1730875838196,-507.87311244,0.00037808,14]
[341425903,1730875838206,-500.0,0.00037808,14]
[341425904,1730875838216,-500.0,0.00037808,14]
[341425905,1730875838225,-194.28372211,0.00037808,14]
[341425906,1730875838235,-500.0,0.00037808,14]
[341425907,1730875838244,-500.0,0.00037808,14]
[341425908,1730875838254,-264.77227775,0.00037808,14]
[341425909,1730875838264,-500.0,0.00037808,14]
[341425910,1730875838273,-500.0,0.00037808,14]
[341425911,1730875838284,-500.0,0.00037808,14]
[341425912,1730875838293,-500.0,0.00037808,14]
[341425913,1730875838302,-500.0,0.00037808,14]
[341425914,1730875838311,-500.0,0.00037808,14]
[341425915,1730875838321,-500.0,0.00037808,14]
[341425916,1730875838330,-500.0,0.00037808,14]
[341425917,1730875838339,-500.0,0.00037808,14]
[341425918,1730875838348,-500.0,0.00037808,14]
[341425919,1730875838358,-359.19958621,0.00037808,14]
[341425920,1730875838374,-140.80041379,0.00037808,14]
[341425921,1730875838383,-500.0,0.00037808,14]
[341425922,1730875838393,-500.0,0.00037808,14]
[341425923,1730875838403,-356.25543705,0.00037808,14]
[341425924,1730875838412,-500.0,0.00037808,14]
[341425925,1730875838422,-500.0,0.00037808,14]
[341425926,1730875838432,-500.0,0.00037808,14]
[341425927,1730875838441,-500.0,0.00037808,14]
[341425928,1730875838450,-500.0,0.00037808,14]
[341425929,1730875838459,-226.79524,0.00037808,14]
[341425930,1730875838469,-500.0,0.00037808,14]
[341425931,1730875838478,-500.0,0.00037808,14]
[341425932,1730875838488,-500.0,0.00037808,14]
[341425933,1730875838497,-500.0,0.00037808,14]
[341425934,1730875838507,-545.63224223,0.00037808,14]
[341425935,1730875838517,-500.0,0.00037808,14]
[341425936,1730875838526,-500.0,0.00037808,14]
[341425937,1730875838536,-500.0,0.00037808,14]
[341425938,1730875838546,-500.0,0.00037808,14]
[341425939,1730875838555,-500.0,0.00037808,14]
[341425940,1730875838565,-500.0,0.00037808,14]
[341425941,1730875838574,-500.0,0.00037808,14]
[341425942,1730875838584,-500.0,0.00037808,14]
[341425943,1730875838594,-499.8687554,0.00037808,14]
[341425944,1730875838603,-151.528372,0.00037808,14]
[341425945,1730875838613,-154.785655,0.00037808,14]
[341425946,1730875838623,-500.0,0.00037808,14]
[341425947,1730875838632,-154.296735,0.00037808,14]
[341425948,1730875838641,-500.0,0.00037808,14]
[341425949,1730875838655,-533.36458504,0.00037808,14]
[341425950,1730875838664,-500.0,0.00037808,14]
[341425951,1730875838673,-500.0,0.00037808,14]
[341425952,1730875838683,-502.39095079,0.00037808,14]
[341425953,1730875838694,-500.0,0.00037808,14]
[341425954,1730875838705,-500.0,0.00037808,14]
[341425955,1730875838714,-551.18,0.00037808,14]
[341425956,1730875838726,-500.0,0.00037808,14]
[341425957,1730875838736,-500.0,0.00037808,14]
[341425958,1730875838747,-500.0,0.00037808,14]
[341425959,1730875838756,-500.0,0.00037808,14]
[341425960,1730875838766,-607.73782642,0.00037808,14]
[341425961,1730875838776,-500.0,0.00037808,14]
[341425962,1730875838786,-500.0,0.00037808,14]
[341425963,1730875838795,-500.0,0.00037808,14]
[341425964,1730875838804,-500.0,0.00037808,14]
[341425965,1730875838814,-500.0,0.00037808,14]
[341425966,1730875838824,-500.0,0.00037808,14]
[341425967,1730875838833,-500.0,0.00037808,14]
[341425989,1730875839072,-500.0,0.00037808,14]
[341425991,1730875839082,-539.19,0.00037808,14]
[341425993,1730875839091,-540.04591126,0.00037808,14]
[341425995,1730875839100,-500.0,0.00037808,14]
[341425996,1730875839109,-500.0,0.00037808,14]
[341425997,1730875839118,-500.0,0.00037808,14]
[341425998,1730875839127,-500.0,0.00037808,14]
[341425999,1730875839136,-500.0,0.00037808,7]
[341426000,1730875839145,-500.0,0.00037808,14]
[341426001,1730875839155,-542.15169646,0.00037808,14]
[341426002,1730875839164,-500.0,0.00037808,14]
[341426003,1730875839174,-500.0,0.00037808,14]
[341426004,1730875839183,-500.0,0.00037808,14]
[341426005,1730875839192,-500.0,0.00037808,14]
[341426006,1730875839201,-324.75226698,0.00037808,14]
[341426007,1730875839211,-500.0,0.00037808,14]
[341426008,1730875839219,-500.0,0.00037808,14]
[341426010,1730875839229,-500.0,0.00037808,14]
[341426012,1730875839238,-500.0,0.00037808,14]
[341426014,1730875839247,-500.0,0.00037808,14]
[341426015,1730875839257,-500.0,0.00037808,14]
[341426016,1730875839266,-518.83498619,0.00037808,14]
[341426017,1730875839275,-500.0,0.00037808,14]
[341426018,1730875839288,-500.0,0.00037808,14]
[341426019,1730875839300,-508.57885569,0.00037808,14]
[341426020,1730875839309,-500.0,0.00037808,14]
[341426021,1730875839319,-500.0,0.00037808,14]
[341426022,1730875839328,-527.12430897,0.00037808,14]
[341426023,1730875839337,-500.0,0.00037808,14]
[341426024,1730875839347,-500.0,0.00037808,14]
[341426025,1730875839356,-500.0,0.00037808,14]
[341426026,1730875839365,-500.0,0.00037808,14]
[341426027,1730875839374,-500.0,0.00037808,14]
[341426028,1730875839384,-500.0,0.00037808,14]
[341426029,1730875839394,-500.0,0.00037808,14]
[341426030,1730875839403,-500.0,0.00037808,14]
[341426031,1730875839412,-500.0,0.00037808,14]
[341426032,1730875839421,-500.0,0.00037808,14]
[341426033,1730875839431,-552.98354187,0.00037808,14]
[341426034,1730875839441,-500.0,0.00037808,14]
[341426035,1730875839450,-500.0,0.00037808,14]
[341426036,1730875839459,-500.0,0.00037808,14]
[341426037,1730875839468,-477.22604314,0.00037808,14]
[341426038,1730875839478,-392.95475765,0.00037808,14]
[341426039,1730875839487,-500.0,0.00037808,14]
[341426040,1730875839496,-500.0,0.00037808,14]
[341426041,1730875839506,-500.0,0.00037808,14]
[341426042,1730875839515,-421.148,0.00037808,14]
[341426043,1730875839524,-546.67050733,0.00037808,14]
[341426044,1730875839536,-527.09965922,0.00037808,14]
[341426046,1730875839546,-622.11,0.00037808,14]
[341426047,1730875839556,-587.762549,0.00037808,14]
[341426048,1730875839565,-500.0,0.00037808,7]
[341426049,1730875839574,-500.0,0.00037808,14]
[341426050,1730875839583,-500.0,0.00037808,14]
[341426051,1730875839593,-500.0,0.00037808,14]
[341426052,1730875839603,-500.0,0.00037808,14]
[341426053,1730875839613,-523.4420897,0.00037808,14]
[341426054,1730875839623,-317.2545305,0.00037808,14]
[341426055,1730875839633,-520.36118776,0.00037808,14]
[341426056,1730875839643,-155.48234567,0.00037808,14]
[341426057,1730875839659,-144.51765433,0.00037808,14]
[341426058,1730875839669,-541.69071744,0.00037808,14]
[341426059,1730875839678,-500.0,0.00037808,14]
[341426060,1730875839687,-233.10546218,0.00037808,14]
[341426061,1730875839696,-510.43688546,0.00037808,14]
[341426062,1730875839706,-500.0,0.00037808,14]
[341426063,1730875839715,-427.45,0.00037808,2]